Cogmind - Beta 11.1 @@@ ROGUE MODE // 2022.09.23 @ 05:02:02 Player: deadnoob Result: Destroyed by as-76847 with Assembled Blade Performance ------------- Evolutions (0) 0 Regions Visited (2) 400 Robots Destroyed (17) 85 Value Destroyed (303) 303 Prototype IDs (0) 0 Alien Tech Used (0) 0 Bonus (0) 0 TOTAL SCORE: 788 Bonus ------- None Cogmind --------- Core Integrity 0/250 Matter 200/300 Energy 100/100 System Corruption 10% Temperature Cool (0) Movement Rolling (140) Ox4 Location -10/Mines Parts ------- > --- POWER (1) -------- (None) > --- PROPULSION (2) --- Wheel > --- UTILITY (2) ------ High-capacity Storage Unit > --- WEAPON (2) ------- Light Assault Rifle > --- INVENTORY (20) --- Light Ion Engine Light Ion Engine Light Ion Engine Aluminum Leg Aluminum Leg High-capacity Storage Unit High-capacity Matter Pod (200) Grenade Launcher Peak State ------------ > --- POWER ------------ Ion Engine > --- PROPULSION ------- Light Treads Light Treads > --- UTILITY ---------- Heat Sink High-capacity Storage Unit > --- WEAPON ----------- Assault Rifle Rocket Launcher > --- INVENTORY -------- Light Ion Engine Light Ion Engine Light Ion Engine Aluminum Leg Aluminum Leg Wheel High-capacity Storage Unit High-capacity Matter Pod Assault Rifle Light Assault Rifle Heavy Battle Rifle Grenade Launcher [Rating: 9] Favorites ----------- Power Ion Engine Engine Ion Engine Propulsion Light Treads Treads Light Treads Leg Aluminum Leg Wheel Wheel Utility Heat Sink Device Heat Sink Storage High-capacity Storage Unit Weapon Assault Rifle Energy Gun Small Laser Ballistic Gun Assault Rifle Launcher Rocket Launcher Build | -11 -10 -10 ------- Run | Scr Mat Min Slots Evolved . | . . . Power . | . . . Propulsion . | . . . Utility . | . . . Weapon . | . . . Parts Attached 16 | . 10 6 Power . | . . . Engine . | . . . Core . | . . . Reactor . | . . . Propulsion 4 | . 3 1 Treads 3 | . 3 . Leg . | . . . Wheel 1 | . . 1 Hover . | . . . Flight . | . . . Utility 3 | . 3 . Device 2 | . 2 . Storage 1 | . 1 . Processor . | . . . Hackware . | . . . Protection . | . . . Artifact . | . . . Weapon 9 | . 4 5 Energy Gun 1 | . 1 . Energy Cannon . | . . . Ballistic Gun 6 | . 3 3 Ballistic Cannon . | . . . Launcher 2 | . . 2 Special Weapon . | . . . Impact Weapon . | . . . Slashing Weapon . | . . . Piercing Weapon . | . . . Special Melee Weapon . | . . . Unidentified Prototypes . | . . . Parts Lost 9 | . 1 8 Power 1 | . . 1 Propulsion 2 | . . 2 Utility 1 | . . 1 Weapon 5 | . 1 4 Highest Loss Streak 8 | . 1 8 To Critical Strikes . | . . . Average Slot Usage (%) 97 | . 96 99 Engine 13 | . 14 13 Treads 27 | . 27 27 Device 12 | . 11 13 Storage 14 | . 14 14 Energy Gun 5 | . 10 . Ballistic Gun 21 | . 16 27 Naked Turns . | . . . Heaviest Build 50 | 14 50 50 Greatest Support 40 | 20 40 40 Greatest Overweight (x) 4 | . 1 4 Average Overweight (x) . | . . 1 Largest Inventory Capacity 20 | . 20 20 Average Capacity 18 | . 16 20 Most Carried 12 | . 9 12 Average Carried 9 | . 8 10 Final Capacity 20 | 8 20 20 Final Carried 9 | 6 9 8 Class Distribution -------------------- 100% | Mutant Dominant Class ---------------- Mutant | -10/Materials Mutant | -10/Mines Resources | -11 -10 -10 ----------- Run | Scr Mat Min Matter Collected 467 | 177 199 91 Remotely . | . . . Salvage Created 431 | . 306 125 Parts 43 | . 28 15 Haulers Intercepted . | . . . Recyclers Shooed . | . . . Parts Field Recycled . | . . . Retrieved Matter . | . . . Parts Self-Destructed . | . . . Prevented . | . . . Kills | -11 -10 -10 ------- Run | Scr Mat Min Combat Hostiles Destroyed 28 | . 11 17 Guns 19 | . 11 8 AOE 9 | . . 9 Classes Destroyed 3 | . 2 1 Swarmer 12 | . 6 6 Grunt 5 | . 5 . Assembled 11 | . . 11 Best Kill Streak 11 | . 3 11 Combat Bots Only 11 | . 3 11 Max Kills in Single Turn 3 | . 2 3 Gunslinging 1 | . 1 . Exploded 3 | . . 3 Melee . | . . . Uniques/NPCs Destroyed . | . . . Combat | -11 -10 -10 -------- Run | Scr Mat Min Damage Taken 1192 | . 333 859 Core 276 | . 51 225 Absorbed by Shields . | . . . Core Remaining (%) 100 | 100 . . Volleys Fired 53 | . 35 18 Largest 2 | . 2 2 Hottest 60 | . 60 53 Shots Fired 99 | . 69 30 Gun 94 | . 69 25 Cannon . | . . . Launcher 5 | . . 5 Special . | . . . Kinetic 71 | . 46 25 Thermal 23 | . 23 . Explosive 5 | . . 5 Electromagnetic . | . . . Robot Hit Streak 9 | . 9 7 Robot Miss Streak 3 | . 3 3 Penetration Max . | . . . Secondary Targets 2 | . 1 1 Max Gunslinging Chain 1 | . 1 1 Shots Hit Robots 64 | . 48 16 Core Hits 47 | . 17 30 Critical Kills 1 | . 1 . Critical Parts Destroyed . | . . . Critical Strikes 1 | . 1 . Destroy 1 | . 1 . Melee Attacks . | . . . Impact . | . . . Slashing . | . . . Piercing . | . . . Sneak Attacks . | . . . Combat Hostiles . | . . . Follow-up Attacks . | . . . Damage Inflicted 1767 | . 565 1202 Guns 767 | . 565 202 Cannons . | . . . Explosions 988 | . . 988 Melee . | . . . Ramming 12 | . . 12 Kinetic 593 | . 391 202 Thermal 174 | . 174 . Explosive 988 | . . 988 Electromagnetic . | . . . Impact . | . . . Slashing . | . . . Piercing . | . . . Highest Corruption 10 | . . 10 Average Corruption 8 | . . 8 Corruption Purged . | . . . Corruption Blocked . | . . . Effects 1 | . . 1 Energy Discharges 1 | . . 1 Overload Shots . | . . . Overflow Damage 35 | . . 35 Projectiles . | . . . Explosions 35 | . . 35 Melee . | . . . Knockbacks . | . . . Impact . | . . . Kinetic . | . . . Secondary . | . . . Self-Inflicted Damage 69 | . . 69 Shots 3 | . . 3 Rammed 2 | . . 2 Targets Rammed 2 | . . 2 Kicked . | . . . Crushed . | . . . Highest Temperature 114 | . 114 24 Average Temperature 45 | . 58 8 Received Heat Transfer 311 | . 162 149 Siege Activations . | . . . Robots Corrupted . | . . . Combat Hostiles . | . . . Parts Fried . | . . . Impact Corruptions . | . . . Robots Melted . | . . . Combat Hostiles . | . . . Parts Melted 2 | . 2 . Heat Transferred 400 | . 400 . Parts Sabotaged . | . . . Parts Stolen . | . . . Parts Stripped . | . . . Power Chain Reactions . | . . . Missiles Intercepted . | . . . Alert | -11 -10 -10 ------- Run | Scr Mat Min Peak Influence 187 | . 187 166 Initial 50 | . . 50 Average 71 | . 88 52 Maximum Alert Level . | . . . Low Security (%) 100 | . 100 100 Level 1 . | . . . Level 2 . | . . . Level 3 . | . . . Level 4 . | . . . Level 5 . | . . . High Security . | . . . Max Security . | . . . Squads Dispatched 1 | . 1 . Investigation . | . . . Extermination . | . . . Reinforcement 1 | . 1 . Assault . | . . . Garrison . | . . . Intercept . | . . . Searches Triggered . | . . . Construction Impeded . | . . . Haulers Reinforced . | . . . Active Scanning Responses . | . . . Cargo Convoy Interrupts . | . . . Stealth | -11 -10 -10 --------- Run | Scr Mat Min Distress Signals 1 | . 1 . Communications Jammed . | . . . Distress Signals . | . . . Times Spotted 43 | . 15 28 Peak Tracking Total 11 | . 4 11 Tactical Retreats . | . . . Traps | -11 -10 -10 ------- Run | Scr Mat Min Traps Triggered 2 | . 2 . Indirectly . | . . . Trap Hack Attempts . | . . . Triggered . | . . . Disarmed . | . . . Reprogrammed . | . . . Reused . | . . . Traps Extracted . | . . . Installed . | . . . Triggered . | . . . Machines | -11 -10 -10 ---------- Run | Scr Mat Min Machines Disabled . | . . . Max in Single Turn . | . . . Machines Sabotaged . | . . . Garrisons Compromised . | . . . Overloaded Fab Kills . | . . . Hacking | -11 -10 -10 --------- Run | Scr Mat Min Machines Accessed 4 | . 4 . Terminals 3 | . 3 . Fabricators . | . . . Repair Stations . | . . . Recycling Units 1 | . 1 . Scanalyzers . | . . . Garrison Access . | . . . Total Hacks 9 | . 9 . Successful 3 | . 3 . Failed 6 | . 6 . Catastrophic 2 | . 2 . Database Lockouts . | . . . Manual 9 | . 9 . Terminals 7 | . 7 . Fabricators . | . . . Repair Stations . | . . . Recycling Units 2 | . 2 . Scanalyzers . | . . . Garrison Access . | . . . Terminal Hacks . | . . . Fabricator Hacks . | . . . Repair Station Hacks . | . . . Recycling Unit Hacks . | . . . Scanalyzer . | . . . Garrison Access Hacks . | . . . Unauthorized Hacks 3 | . 3 . Terminals 1 | . 1 . Assimilate 1 | . 1 . Fabricators . | . . . Repair Stations . | . . . Recycling Units 2 | . 2 . Reject 1 | . 1 . Mask 1 | . 1 . Scanalyzers . | . . . Garrison Access . | . . . Data Cores Recovered . | . . . Used . | . . . Hacking Detections 3 | . 3 . Full Trace Events 1 | . 1 . Feedback Events . | . . . Feedback Blocked . | . . . Robot Schematics Acquired . | . . . Robots Built . | . . . Authchips . | . . . Time . | . . . Total Robot Build Rating . | . . . Part Schematics Acquired . | . . . Parts Built . | . . . Authchips . | . . . Time . | . . . Total Part Build Rating . | . . . Parts Repaired . | . . . Time . | . . . Parts Recycled . | . . . Recycled Matter . | . . . Retrieved Matter . | . . . Retrieved Components . | . . . Parts Scanalyzed . | . . . Part Schematics Acquired . | . . . Parts Damaged . | . . . Bothacking | -11 -10 -10 ------------ Run | Scr Mat Min Used RIF Installer . | . . . Robots Hacked . | . . . Non-combat . | . . . Combat . | . . . Robot Hacks Applied . | . . . Relay Couplers Released . | . . . Fabnet Peak Effective % . | . . . Robots Rewired . | . . . Allies Hacked . | . . . Hacks Repelled . | . . . Allies | -11 -10 -10 -------- Run | Scr Mat Min Total Allies . | . . . Largest Group . | . . . Highest-Rated Group . | . . . Highest-Rated Ally . | . . . Total Orders . | . . . Ally Attacks . | . . . Total Damage . | . . . Kills . | . . . Allies Corrupted . | . . . Allies Melted . | . . . Intel | -11 -10 -10 ------- Run | Scr Mat Min Robot Analysis Total . | . . . Derelict Logs Recovered . | . . . Drone Launches . | . . . Drone Recoveries . | . . . Exploration | -11 -10 -10 ------------- Run | Scr Mat Min Turns Passed 1426 | . 762 664 Spaces Moved 537 | 1 287 249 Core . | . . . Treads 516 | . 270 246 Legs 18 | 1 17 . Wheels 3 | . . 3 Hover . | . . . Flight . | . . . Fastest Speed 120 | 120 120 140 Average Speed 224 | 120 213 238 Slowest Speed 240 | 120 240 240 Overloaded Moves . | . . . Propulsion Burnouts . | . . . Robots Hopped . | . . . Cave-ins Triggered . | . . . Exploration Rate (%) 36 | 1 48 61 Regions Visited 2 Branch Regions 1 Pre-discovered Areas . | . . . Known Exits Taken . | . . . Unknown Exits Taken 2 | 1 1 . Scrap Searched 1 | . . 1 Spaces Dug 9 | . . 9 Terrain Destroyed 41 | . . 41 Melee . | . . . Projectile 1 | . . 1 AOE 40 | . . 40 Terrain Rammed . | . . . Walls Destroyed . | . . . Machines Disabled . | . . . Actions | -11 -10 -10 --------- Run | Scr Mat Min Total 653 | . 367 286 Wait 33 | . 25 8 Move 535 | . 286 249 Hop . | . . . Pick Up 10 | . 7 3 Fast Attach 5 | . 5 . Attach 5 | . 1 4 Detach . | . . . Swap 6 | . 4 2 Drop 4 | . 4 . Fire 53 | . 35 18 Melee . | . . . Ram . | . . . Kick . | . . . Crush 2 | . . 2 Escape Stasis . | . . . Rewire . | . . . Trap . | . . . Miscellaneous . | . . . Route ------- -11/Scrapyard -10/Materials -10/Mines (discovered 1 exit: [*Mat]) History --------- Turn | Location | Event 1 | -11/Scrapyard | Discovered new exit (range 0) 1 | -11/Scrapyard | Entered Materials 311 | -10/Materials | Build established: Mutant 670 | -10/Materials | Discovered new exit (range 5) 763 | -10/Materials | Entered Mines 907 | -10/Mines | Received a Rocket Launcher from a helpful Derelict 1127 | -10/Mines | Discovered new exit (range 15) 1134 | -10/Mines | A weapon hastily lodged in a ceiling crevice suddenly fell to the ground 1382 | -10/Mines | Assembled infested the area 1387 | -10/Mines | Assisted by a Guerilla fighting off Assembled 1408 | -10/Mines | Core integrity fell below 50% 1411 | -10/Mines | System corruption reached 10% 1421 | -10/Mines | Core integrity fell below 20% 1427 | -10/Mines | Destroyed by as-76847 with Assembled Blade Last Messages --------------- 01402_ as-63786 destroyed. 01403_ Destroyed Asb. Hover Unit. 01403_ as-49048 destroyed. 01404_ The unstable cave ceiling collapses. 01404_ Rocket Launcher destroyed. 01404_ Lgt. Treads destroyed. 01404_ System corrupted by crushing effect (+1). 01407_ Assault Rifle destroyed. 01407_ System corrupted by crushing effect (+2). 01409_ Assault Rifle destroyed. 01410_ Heat Sink destroyed. 01410_ Ion Engine destroyed. 01410_ System corrupted by crushing effect (+5). 01410_ System corrupted by crushing effect (+1). 01410_ Lgt. Treads destroyed. 01411_ as-01880 destroyed. 01413_ System corrupted: Energy discharge (-34). 01420_ as-32819 destroyed. 01425_ The unstable cave ceiling collapses. 01426_ Hvy. Battle Rifle destroyed. Map ----- +----------------------------------------------------+ | ???????????????????????????????????????????? | | ???????????????????????????????????????????? | | #??????????????????????????????????????????? | | ####???????????????????????????????????????? | | ## ##?????????????????????????????????????? | | # ######????????????????????????????????? | | # ##???????????????????????????????? | | # #???????????????????????????????? | | # ##??????????????????????????????? | | ?# ##????????????????????#????????? | | ??# #???????????????????? ????????? | | ??# #??????##???####???? #????????? | | ??## ##??????? #?## ##??# ##???????? | | ???## #####????????? ## ### ##??????? | | ????# ##????????????? a ???????? | | ????# #??????????????? u ##??????? | | ????# #?#######???????? # #??????? | | ????# #?# ###??## #???????? | | ????# #?# """ ##/!## a #???????? | | ????# #?# """ #"[! # %# #????????? | | ##### #?# """ # / # #????????#? | | #?# #$ Y #?????? #? | | ##### #?# """ #????# % #???? #? | | ????# ### """ #????# ##### #? | | ????# """ #????## a #? | | ????# ### #?????#@a #? | | ????# #?# #?????## #### ###### #?? | | ??### #?# #??????####??# #?????????? | | ?## ### #????????????# #?????????? | | ?# ###########????????????# #?????????? | | ?# #??????????????????????# #?????####? | | ?## #??????????????????????#=#??? #? | | ??## #??????????????????##### ## #? | | ???# ##?????????????????# =*=%[ """ #? | | ??## ###????????????#### ######=""" #? | | ?## ##???????????# #??????""" ?? | | ?# #####???????# ####???????"" ??? | | ?# ==*#???????# #???????????? ???? | | ?# # ###=#???????# ######???????????? | | ?## ## #?# #???????# #???????????? | | ??#### #####?#[#???????# #### #???????????? | | ?????# #?????# #####?### #??# #???????????? | | ?????# #?????#[ * #?# #??# ####????????? | | ?????# #?????##### #?# ###?## ##???????? | | ?????# #?????????# ### #???# #???????? | | ?????# #?????????# #??## #???????? | | ?????# #?????????##### #?## #???????? | | ?????# #?????????????# #?# ##??????? | | ?????# #?????????????# ### #??????? | | ?????# #????????????## ## #??????? | +----------------------------------------------------+ Best States ------------- Heat Dissipation 35 Energy Generation 10 Energy Capacity 250 Matter Stores 300 Matter Capacity 300 Sight Range 16 Terrain Scan Density 10 Evasion (%) 55 Recoil Reduction 2 Item Schematics ----------------- None Robot Schematics ------------------ None Fabricated ------------ Nothing Alien Tech Used ----------------- None Achievements -------------- None Challenges ------------ None Game ------ Seed LightActiveRedirector Manual? 0 Play Time 00:10:02 Cumulative 91.8 hours Start 2022.09.23 @ 04:54:52 End 2022.09.23 @ 05:02:02 Sessions 1 Manual Loads 0 Difficulty Rogue Special Mode None Game No. 129 Rogue 129 Adventurer 0 Explorer 0 Win Type - Total 1 Types 1/0/0/0/0/0/0/0/0 Lore% 61 Gallery% 63 Achievement% 50 Wizard Run 0 Options --------- ASCII 0 Keyboard 0 Movement Numpad Keybinds 0 Fullscreen 2 Font 18/SmallcapsGlow Map View 76x50 Tactical HUD 1 Map Filters NONE Filters NONE Steam 1 RUN: 9c8e2d20-1719-42a0-ba1a-9e12258c1389